bitfinex/quotes_BTCUSD_20250211
["timestamp","ask_amount","ask_price","bid_price","bid_amount"]
[1739308465066,0.25935965,95629.0,95628.0,0.00366842]
[1739308465439,0.26035965,95629.0,95628.0,0.01066842]
[1739308465621,0.27674827,95629.0,95628.0,0.01066842]
[1739308466480,0.27674827,95629.0,95628.0,0.00766842]
[1739308466635,0.29102846,95629.0,95628.0,0.01066842]
[1739308467860,0.44102846,95629.0,95628.0,0.01066842]
[1739308470522,0.44002846,95629.0,95628.0,0.00066842]
[1739308470782,0.44002846,95629.0,95628.0,0.00966842]
[1739308485984,0.156854,95630.0,95628.0,0.05896842]
[1739308486103,0.156852,95632.0,95629.0,0.0765]
[1739308486418,0.156853,95631.0,95629.0,0.0765]
[1739308487582,0.156854,95630.0,95629.0,0.0765]
[1739308487748,0.156853,95631.0,95629.0,0.0765]
[1739308489040,0.156853,95631.0,95629.0,0.0885]
[1739308489251,0.209132,95633.0,95629.0,0.0935]
[1739308489595,0.209132,95633.0,95629.0,0.0885]
[1739308489795,0.209132,95633.0,95629.0,0.0935]
[1739308489997,0.156853,95631.0,95629.0,0.0935]
[1739308490217,0.156853,95631.0,95629.0,0.0765]
[1739308490420,0.156853,95631.0,95629.0,0.0815]
[1739308490576,0.156853,95631.0,95629.0,0.0905]
[1739308490777,0.156854,95630.0,95629.0,0.0905]
[1739308491100,0.156854,95630.0,95629.0,0.0765]
[1739308492622,0.156854,95630.0,95629.0,0.0885]
[1739308492982,0.156854,95630.0,95629.0,0.0825]
[1739308493190,0.156854,95630.0,95629.0,0.0955]
[1739308494142,0.156854,95630.0,95629.0,0.09572365]
[1739308496094,0.209135,95632.0,95629.0,0.09572365]
[1739308496395,0.156854,95630.0,95629.0,0.09572365]
[1739308497111,0.156854,95630.0,95629.0,0.08272365]
[1739308497348,0.156854,95630.0,95629.0,0.09372365]
[1739308498781,0.156854,95630.0,95629.0,0.08272365]
[1739308499218,0.156854,95630.0,95629.0,0.09572365]
[1739308499473,0.209134,95633.0,95629.0,0.09572365]
[1739308499679,0.156854,95630.0,95629.0,0.09572365]
[1739308500291,0.156854,95630.0,95629.0,0.08272365]
[1739308500625,0.156854,95630.0,95629.0,0.09272365]
[1739308502478,0.156854,95630.0,95629.0,0.08272365]
[1739308502880,0.156854,95630.0,95629.0,0.09572365]
[1739308503728,0.156854,95630.0,95629.0,0.01922365]
[1739308504534,0.25935765,95630.0,95629.0,0.01922365]
[1739308505183,0.40935765,95630.0,95629.0,0.01922365]
[1739308505821,0.40935765,95630.0,95629.0,0.00022365]
[1739308506032,0.40935765,95630.0,95629.0,0.00522365]
[1739308506247,0.40935765,95630.0,95629.0,0.00822365]
[1739308506447,0.47621735,95630.0,95629.0,0.00522365]
[1739308506665,0.40935765,95630.0,95629.0,0.00022365]
[1739308506844,0.40935765,95630.0,95629.0,0.00622365]
[1739308508062,0.42574696,95630.0,95629.0,0.00622365]
[1739308508648,0.44668321,95630.0,95629.0,0.00622365]
[1739308512023,0.45476321,95630.0,95629.0,0.00622365]
[1739308513670,0.44668321,95630.0,95629.0,0.00622365]
[1739308513881,0.45476321,95630.0,95629.0,0.00622365]
[1739308514601,0.44668321,95630.0,95629.0,0.00622365]
[1739308520009,0.58438021,95630.0,95629.0,0.00622365]
[1739308520845,0.58438021,95630.0,95629.0,0.01622365]
[1739308521176,0.58438021,95630.0,95629.0,0.01022365]
[1739308521321,0.45068321,95630.0,95629.0,0.01022365]
[1739308521933,0.44668321,95630.0,95629.0,0.01022365]
[1739308522141,0.45068321,95630.0,95629.0,0.01022365]
[1739308522304,0.42974696,95630.0,95629.0,0.01022365]
[1739308522516,0.41335765,95630.0,95629.0,0.01022365]
[1739308522702,0.15,95631.0,95629.0,0.01022365]
[1739308522972,0.156854,95630.0,95629.0,0.01022365]
[1739308524351,0.156854,95630.0,95629.0,0.02360286]
[1739308524352,0.004,95630.0,95629.0,0.02360286]
[1739308524560,0.004,95630.0,95629.0,0.08992365]
[1739308524763,0.17072727,95636.0,95629.0,0.08692365]
[1739308524940,0.01388327,95636.0,95629.0,0.09492365]
[1739308525146,0.156848,95634.0,95630.0,0.0767]
[1739308525477,0.209122,95638.0,95630.0,0.0767]
[1739308526212,0.156848,95634.0,95630.0,0.0767]
[1739308527419,0.156848,95634.0,95630.0,0.0817]
[1739308527628,0.156848,95634.0,95630.0,0.0897]
[1739308528180,0.156848,95634.0,95630.0,0.0817]
[1739308528446,0.156848,95634.0,95630.0,0.0927]
[1739308528639,0.156848,95634.0,95630.0,0.0877]
[1739308528800,0.156849,95633.0,95630.0,0.0927]
[1739308529009,0.156849,95633.0,95630.0,0.0817]
[1739308529362,0.156849,95633.0,95630.0,0.0927]
[1739308530163,0.156849,95633.0,95630.0,0.0877]
[1739308530565,0.156849,95633.0,95630.0,0.0817]
[1739308530810,0.156849,95633.0,95630.0,0.0767]
[1739308530983,0.156849,95633.0,95630.0,0.0887]
[1739308531239,0.209122,95638.0,95630.0,0.0937]
[1739308531449,0.01638769,95639.0,95630.0,0.0817]
[1739308531622,0.156852,95632.0,95630.0,0.0817]
[1739308531777,0.156852,95631.0,95630.0,0.0887]
[1739308532212,0.156851,95632.0,95630.0,0.0817]
[1739308532585,0.156851,95632.0,95630.0,0.0887]
[1739308532712,0.209124,95637.0,95630.0,0.0887]
[1739308532936,0.156852,95631.0,95630.0,0.0887]
[1739308533315,0.156852,95631.0,95630.0,0.0837]
[1739308533523,0.156852,95631.0,95630.0,0.0897]
[1739308533833,0.156852,95631.0,95630.0,0.0767]
[1739308534174,0.156852,95631.0,95630.0,0.0947]
[1739308534471,0.156852,95631.0,95630.0,0.0887]
[1739308534664,0.156852,95631.0,95630.0,0.0807]
[1739308535038,0.156852,95631.0,95630.0,0.0887]
[1739308536624,0.1732405,95631.0,95630.0,0.0887]
[1739308539355,0.19413357,95631.0,95630.0,0.0887]
[1739308541988,0.19413357,95631.0,95630.0,0.08892365]
[1739308544148,0.1732405,95631.0,95630.0,0.08892365]
[1739308544710,0.1732405,95631.0,95630.0,0.08092365]
[1739308544922,0.1732405,95631.0,95630.0,0.08792365]
[1739308546321,0.1732405,95631.0,95630.0,0.08392365]
[1739308546522,0.1732405,95631.0,95630.0,0.08692365]
[1739308546767,0.1732405,95631.0,95630.0,0.07692365]
[1739308547378,0.1732405,95631.0,95630.0,0.07992365]
[1739308547597,0.1732405,95631.0,95630.0,0.08692365]
[1739308554725,0.173347,95631.0,95630.0,0.08692365]
[1739308554917,0.173347,95631.0,95630.0,0.01022365]
[1739308555850,0.173347,95631.0,95630.0,0.00322365]
[1739308556072,0.173347,95631.0,95630.0,0.00222365]
[1739308556472,0.173347,95631.0,95630.0,0.00322365]
[1739308558753,0.173347,95631.0,95630.0,0.00122365]
[1739308559014,0.173347,95631.0,95630.0,0.00322365]
[1739308559170,0.173347,95631.0,95630.0,0.00222365]
[1739308559616,0.173347,95631.0,95630.0,0.00322365]
[1739308567213,0.016495,95631.0,95630.0,0.12872365]
[1739308567438,0.0001065,95631.0,95630.0,0.12872365]
[1739308568607,0.0001065,95631.0,95630.0,0.12772365]
[1739308568839,0.0001065,95631.0,95630.0,0.12572365]
[1739308569076,0.0001065,95631.0,95630.0,0.13072365]
[1739308569314,0.0001065,95631.0,95630.0,0.13772365]
[1739308569569,0.0001065,95631.0,95630.0,0.14372365]
[1739308569815,0.0001065,95631.0,95630.0,0.13172365]
[1739308570067,0.0001065,95631.0,95630.0,0.14472365]
[1739308571323,0.0001065,95631.0,95630.0,0.13172365]
[1739308571826,0.17334638,95631.0,95630.0,0.07602365]
[1739308572046,0.17334638,95631.0,95630.0,0.09402365]
[1739308574054,0.1569585,95631.0,95630.0,0.09402365]
[1739308574597,0.0001065,95631.0,95630.0,0.09402365]
[1739308575099,0.1569585,95631.0,95630.0,0.09402365]
[1739308578387,0.17334689,95631.0,95630.0,0.09402365]
[1739308585563,0.01649489,95631.0,95630.0,0.09402365]
[1739308585762,0.01649489,95631.0,95630.0,0.14172365]
[1739308586917,0.0001065,95631.0,95630.0,0.29857765]
[1739308587252,0.0001065,95631.0,95630.0,0.4010813]
[1739308587865,0.0001065,95631.0,95630.0,0.3890813]
[1739308588094,0.0001065,95631.0,95630.0,0.48490754]
[1739308588750,0.0001065,95631.0,95630.0,0.47090754]
[1739308588999,0.0001065,95631.0,95630.0,0.46490754]
[1739308589192,0.0001065,95631.0,95630.0,0.48690754]
[1739308589598,0.0001065,95631.0,95630.0,0.47990754]
[1739308590000,0.0001065,95631.0,95630.0,0.48690754]
[1739308590330,0.0001065,95658.0,95644.0,0.285631]
[1739308590509,0.0001065,95658.0,95644.0,0.38813465]
[1739308591321,0.0001065,95658.0,95657.0,0.15681]
[1739308591645,0.0001065,95658.0,95657.0,0.28561]
[1739308592594,0.00015291,95658.0,95657.0,0.28861]
[1739308592821,0.00015291,95658.0,95657.0,0.3801975]
[1739308593497,0.00015291,95658.0,95657.0,0.28861]
[1739308596014,0.00015291,95658.0,95657.0,0.39111365]
[1739308598028,0.00015291,95658.0,95657.0,0.38811365]
[1739308598158,0.00015291,95658.0,95657.0,0.39111365]
[1739308598358,0.00015291,95658.0,95657.0,0.39711365]
[1739308599507,0.01372491,95667.0,95666.0,0.236395]
[1739308599708,0.0126105,95678.0,95666.0,0.0796]
[1739308599966,0.156785,95672.0,95666.0,0.0796]
[1739308600290,0.209041,95675.0,95666.0,0.0796]
[1739308600736,0.15597926,95670.0,95666.0,0.0796]
[1739308601141,0.156793,95667.0,95666.0,0.0796]
[1739308601976,0.0365848,95667.0,95647.0,0.0796]
[1739308602191,0.156821,95651.0,95647.0,0.0796]
[1739308602377,0.15682,95652.0,95647.0,0.0796]
[1739308602541,0.156822,95650.0,95647.0,0.0796]
[1739308602743,0.156825,95648.0,95647.0,0.0796]
[1739308603100,0.156825,95648.0,95647.0,0.0806]
[1739308603279,0.156825,95648.0,95647.0,0.001]
[1739308603672,0.25932865,95648.0,95647.0,0.001]
[1739308604420,0.156852,95631.0,95630.0,0.00022365]
[1739308605631,0.156852,95631.0,95630.0,0.00066842]
[1739308606069,0.156852,95631.0,95630.0,0.00466842]
[1739308606512,0.14728274,95640.0,95630.0,0.00466842]
[1739308606668,0.156852,95631.0,95630.0,0.00466842]
[1739308607390,0.157852,95631.0,95630.0,0.01066842]
[1739308607605,0.001,95631.0,95630.0,0.01066842]
[1739308607806,0.156852,95631.0,95630.0,0.00066842]
[1739308608180,0.157852,95631.0,95630.0,0.01066842]
[1739308608371,0.157852,95631.0,95630.0,0.01266842]
[1739308608576,0.157852,95631.0,95630.0,0.01066842]
[1739308608816,0.156852,95631.0,95630.0,0.00066842]
[1739308609058,0.156852,95631.0,95630.0,0.00466842]
[1739308609216,0.156852,95631.0,95630.0,0.00066842]
[1739308609425,0.156852,95631.0,95630.0,0.00466842]
[1739308610638,0.156852,95631.0,95630.0,0.01366842]
[1739308611033,0.01638733,95633.0,95630.0,0.00466842]
[1739308611255,0.156852,95631.0,95630.0,0.00466842]
[1739308611608,0.156852,95631.0,95630.0,0.01366842]
[1739308611767,0.156852,95631.0,95630.0,0.00966842]
[1739308611970,0.156852,95631.0,95630.0,0.00066842]
[1739308612172,0.156852,95631.0,95630.0,0.01266842]
[1739308612378,0.156852,95631.0,95630.0,0.00866842]
[1739308612818,0.156852,95631.0,95630.0,0.01366842]
[1739308613179,0.156852,95631.0,95630.0,0.00866842]
[1739308613382,0.156852,95631.0,95630.0,0.01166842]
[1739308613575,0.156852,95631.0,95630.0,0.00366842]
[1739308614028,0.156852,95631.0,95630.0,0.01366842]
[1739308614533,0.156852,95631.0,95630.0,0.00066842]
[1739308614756,0.156852,95631.0,95630.0,0.00566842]
[1739308614956,0.156852,95631.0,95630.0,0.00766842]
[1739308615092,0.156852,95631.0,95630.0,0.00066842]
[1739308615515,0.156852,95631.0,95630.0,0.01566842]
[1739308615733,0.156852,95631.0,95630.0,0.01066842]
[1739308616110,0.156852,95631.0,95630.0,0.01366842]
[1739308616308,0.156852,95631.0,95630.0,0.01066842]
[1739308616698,0.156852,95631.0,95630.0,0.01566842]
[1739308617308,0.156852,95631.0,95630.0,0.00566842]
[1739308617531,0.156852,95631.0,95630.0,0.01066842]
[1739308617943,0.156852,95631.0,95630.0,0.00566842]
[1739308618338,0.156852,95631.0,95630.0,0.01066842]
[1739308618759,0.156852,95631.0,95630.0,0.01266842]
[1739308619006,0.156852,95631.0,95630.0,0.00266842]
[1739308619304,0.156852,95631.0,95630.0,0.00566842]
[1739308619432,0.156852,95631.0,95630.0,0.00366842]
[1739308620455,0.156852,95631.0,95630.0,0.00866842]
[1739308620838,0.1871269,95631.0,95630.0,0.00866842]
[1739308621133,0.1871269,95631.0,95630.0,0.00566842]
[1739308621368,0.156852,95631.0,95630.0,0.01566842]
[1739308621559,0.156852,95631.0,95630.0,0.01066842]
[1739308621814,0.156852,95631.0,95630.0,0.00366842]
[1739308621985,0.156852,95631.0,95630.0,0.00766842]
[1739308622139,0.156852,95631.0,95630.0,0.00466842]
[1739308622325,0.156852,95631.0,95630.0,0.00666842]
[1739308622528,0.156852,95631.0,95630.0,0.00066842]
[1739308622739,0.156852,95631.0,95630.0,0.01066842]
[1739308622941,0.156852,95631.0,95630.0,0.01566842]
[1739308623201,0.156852,95631.0,95630.0,0.01066842]
[1739308623603,0.156852,95631.0,95630.0,0.01366842]
[1739308624114,0.156852,95631.0,95630.0,0.00366842]
[1739308624480,0.156852,95631.0,95630.0,0.00866842]
[1739308625023,0.156852,95631.0,95630.0,0.00566842]
[1739308625374,0.156852,95631.0,95630.0,0.01066842]
[1739308625572,0.156852,95631.0,95630.0,0.00066842]
[1739308625891,0.156852,95631.0,95630.0,0.01266842]
[1739308626684,0.156852,95631.0,95630.0,0.01066842]
[1739308626895,0.25935565,95631.0,95630.0,0.01066842]
[1739308627094,0.40935565,95631.0,95630.0,0.01266842]
[1739308627321,0.40935565,95631.0,95630.0,0.00266842]
[1739308627764,0.40935565,95631.0,95630.0,0.00666842]
[1739308628329,0.40935565,95631.0,95630.0,0.00266842]
[1739308628468,0.40935565,95631.0,95630.0,0.00566842]
[1739308628898,0.40935565,95631.0,95630.0,0.00366842]
[1739308629539,0.40935565,95631.0,95630.0,0.00866842]
[1739308629856,0.40935565,95631.0,95630.0,0.00366842]
[1739308630217,0.40935565,95631.0,95630.0,0.00566842]
[1739308630421,0.4257449,95631.0,95630.0,0.00566842]
[1739308633231,0.40935565,95631.0,95630.0,0.00566842]
[1739308633632,1.05575765,95631.0,95630.0,0.00566842]
[1739308634213,0.96895165,95631.0,95630.0,0.00566842]
[1739308634829,0.84425165,95631.0,95630.0,0.00566842]
[1739308635031,0.40935565,95631.0,95630.0,0.00566842]
[1739308635872,0.52101665,95631.0,95630.0,0.00366842]
[1739308636159,0.52101665,95631.0,95630.0,0.00566842]
[1739308636357,0.40935565,95631.0,95630.0,0.00566842]
[1739308636562,0.40935565,95631.0,95630.0,0.00266842]
[1739308636926,0.40935565,95631.0,95630.0,0.00566842]
[1739308637540,0.42574462,95631.0,95630.0,0.00566842]
[1739308637780,0.42574462,95631.0,95630.0,0.00266842]
[1739308638184,0.42574462,95631.0,95630.0,0.00566842]
[1739308639354,0.42574462,95631.0,95630.0,0.00366842]
[1739308639972,0.42574462,95631.0,95630.0,0.00566842]
[1739308640175,0.32324097,95631.0,95630.0,0.00566842]
[1739308641707,0.01638897,95631.0,95630.0,0.00566842]
[1739308641926,0.17324097,95631.0,95630.0,0.00566842]
[1739308659838,0.17334757,95631.0,95630.0,0.00566842]
[1739308663103,0.156852,95631.0,95630.0,0.00566842]
[1739308671637,0.01261363,95640.0,95631.0,0.0453]
[1739308671862,0.0001065,95648.0,95630.0,0.08586842]
[1739308671863,0.0001065,95648.0,95634.0,0.156847]
[1739308672085,0.0001065,95648.0,95635.0,0.0802]
[1739308672330,0.0001065,95648.0,95647.0,0.156826]
[1739308672565,0.0001065,95648.0,95647.0,0.237026]
[1739308673019,0.0001065,95648.0,95647.0,0.284026]
[1739308673829,0.0001065,95648.0,95647.0,0.1282]
[1739308674124,0.0001065,95648.0,95647.0,0.285026]
[1739308674362,0.0001065,95648.0,95647.0,0.1282]
[1739308675204,0.0001065,95648.0,95647.0,0.284026]
[1739308675605,0.0001065,95648.0,95647.0,0.1302]
[1739308675959,0.0001065,95648.0,95647.0,0.1362]
[1739308693776,0.0001065,95648.0,95647.0,0.293026]
[1739308697127,0.0001065,95648.0,95647.0,0.39552965]
[1739308697471,0.0001065,95648.0,95647.0,0.41503332]
[1739308698340,0.0001065,95648.0,95647.0,0.56503332]
[1739308698544,0.3256,95686.0,95647.0,0.56503332]
[1739308698545,0.32475055,95686.0,95667.0,0.1257]
[1739308698767,0.156762,95686.0,95668.0,0.09226898]
[1739308698961,0.2091194,95688.0,95668.0,0.09226898]
[1739308699185,0.156764,95686.0,95668.0,0.09226898]
[1739308699330,0.01179375,95687.0,95681.0,0.08402876]
[1739308699540,0.0001064,95687.0,95683.0,0.0771]
[1739308699742,0.002,95686.0,95683.0,0.0771]
[1739308701166,0.00015082,95687.0,95683.0,0.0771]
[1739308701365,0.00115082,95687.0,95683.0,0.0771]
[1739308701828,0.00015082,95687.0,95686.0,0.36769076]
[1739308702044,0.00015082,95687.0,95686.0,0.47499049]
[1739308702562,5.857e-05,95687.0,95686.0,0.47499049]
[1739308702944,5.857e-05,95687.0,95686.0,0.47599049]
[1739308703565,5.857e-05,95687.0,95686.0,0.62599049]
[1739308704355,5.857e-05,95687.0,95686.0,0.62499049]
[1739308704560,5.857e-05,95687.0,95686.0,0.63799049]
[1739308705334,5.857e-05,95687.0,95686.0,0.64399049]
[1739308706343,5.857e-05,95687.0,95686.0,0.55516565]
[1739308707791,0.0143604,95691.0,95686.0,0.57816565]
[1739308707992,0.0143604,95691.0,95690.0,0.55915965]
[1739308708198,0.0143604,95691.0,95690.0,0.58817954]
[1739308709050,0.0001065,95715.0,95702.0,0.306736]
[1739308709250,0.01417768,95703.0,95702.0,0.58771275]
[1739308710216,0.01290807,95703.0,95702.0,0.58771275]
[1739308711248,0.01290807,95703.0,95702.0,0.59471275]
[1739308712035,0.01290807,95703.0,95702.0,0.58771275]
[1739308712255,0.01290807,95703.0,95702.0,0.60971275]
[1739308716735,0.01290807,95703.0,95702.0,0.55813965]
[1739308718749,0.01290807,95703.0,95702.0,0.59090846]
[1739308718962,0.0001065,95715.0,95707.0,0.156728]
[1739308719156,0.0001065,95715.0,95707.0,0.25923165]
[1739308719359,0.0001065,95715.0,95707.0,0.40923165]
[1739308719768,0.0001065,95715.0,95707.0,0.42901012]
[1739308719962,0.0001065,95715.0,95702.0,0.14912365]
[1739308719963,0.0001065,95715.0,95702.0,0.02222365]
[1739308720337,0.156734,95703.0,95702.0,0.00722365]
[1739308720637,0.1568325,95708.0,95707.0,0.015]
[1739308720757,0.1568325,95708.0,95707.0,0.022]
[1739308720979,0.156731,95705.0,95702.0,0.00022365]
[1739308721186,0.156734,95704.0,95702.0,0.00422365]
[1739308721455,0.208971,95707.0,95702.0,0.01222365]
[1739308721646,0.156734,95703.0,95702.0,0.00822365]
[1739308721956,0.156734,95703.0,95702.0,0.00022365]
[1739308722159,0.0120869,95708.0,95702.0,0.00522365]
[1739308722160,0.0001065,95708.0,95702.0,0.00522365]
[1739308723534,0.0001065,95708.0,95702.0,0.00022365]
[1739308723708,0.0001065,95708.0,95702.0,0.00322365]
[1739308723907,0.0001065,95708.0,95702.0,0.00722365]
[1739308724128,0.0001065,95708.0,95702.0,0.00422365]
[1739308724325,0.0001065,95708.0,95702.0,0.00022365]
[1739308724699,0.0001065,95708.0,95702.0,0.01122365]
[1739308725106,0.0001065,95708.0,95702.0,0.01722365]
[1739308725268,0.0001065,95708.0,95702.0,0.01122365]
[1739308725471,0.0001065,95708.0,95703.0,0.0793]
[1739308725673,0.0001065,95708.0,95704.0,0.18668317]
[1739308726068,0.0001065,95708.0,95705.0,0.21001777]
[1739308726267,0.0001065,95708.0,95707.0,0.156728]
[1739308726474,0.0001065,95708.0,95707.0,0.30777637]
[1739308726698,0.0001065,95708.0,95707.0,0.30673165]
[1739308727359,0.0001065,95708.0,95707.0,0.3918473]
[1739308727561,0.0001065,95708.0,95707.0,0.4711473]
[1739308727799,0.0001065,95708.0,95707.0,0.4821473]
[1739308728411,0.0001065,95708.0,95707.0,0.6321473]
[1739308728661,0.0001065,95708.0,95707.0,0.6211473]
[1739308728873,0.0001065,95708.0,95707.0,0.6491473]
[1739308729081,0.0001065,95708.0,95707.0,0.67651321]
[1739308729307,0.0001065,95708.0,95707.0,1.53871321]
[1739308729511,0.0001065,95708.0,95707.0,1.53271321]
[1739308729917,0.0001065,95708.0,95707.0,1.54371321]
[1739308730226,0.0001065,95708.0,95707.0,1.54971321]
[1739308730424,0.0001065,95708.0,95707.0,1.53871321]
[1739308730933,0.0001065,95708.0,95707.0,1.55371321]
[1739308731461,0.0001065,95708.0,95707.0,1.54771321]
[1739308731856,0.0001065,95708.0,95707.0,1.55471321]
[1739308732235,0.0001065,95708.0,95707.0,1.58185146]
[1739308732440,0.0001065,95708.0,95707.0,1.60227637]
[1739308732846,0.0001065,95708.0,95707.0,1.06737637]
[1739308734229,0.0001065,95708.0,95707.0,1.05237637]
[1739308734414,0.0001065,95708.0,95707.0,1.04537637]
[1739308734610,0.0001065,95708.0,95707.0,1.08868537]
[1739308734814,0.0001065,95708.0,95707.0,1.09568537]
[1739308735064,0.0001065,95708.0,95707.0,1.08868537]
[1739308735599,0.0001065,95708.0,95707.0,1.09568537]
[1739308736050,0.0001065,95708.0,95707.0,1.02523812]
[1739308736651,0.0001065,95708.0,95707.0,0.95512247]
[1739308737470,0.0001065,95708.0,95707.0,0.93469756]
[1739308737692,0.156674,95740.0,95724.0,0.15]
[1739308737917,0.417776,95745.0,95726.0,0.15]
[1739308738118,0.03463327,95747.0,95728.0,0.15]
[1739308738352,0.15667,95743.0,95729.0,0.12775401]
[1739308738507,0.15667,95743.0,95729.0,0.10250365]
[1739308738911,0.208888,95745.0,95729.0,0.10250365]
[1739308739114,0.156669,95743.0,95729.0,0.10250365]
[1739308739321,0.00013327,95747.0,95734.0,0.08402876]
[1739308740336,0.15667,95743.0,95734.0,0.08402876]
[1739308740950,0.15667,95743.0,95734.0,0.09102876]
[1739308741156,0.00013327,95747.0,95734.0,0.09102876]
[1739308741364,0.156669,95744.0,95734.0,0.08402876]
[1739308741565,0.00013327,95747.0,95734.0,0.08402876]
[1739308741766,0.208886,95746.0,95734.0,0.09402876]
[1739308742304,0.156667,95744.0,95734.0,0.09802876]
[1739308742622,0.15667,95743.0,95734.0,0.09402876]
[1739308742797,0.00013327,95747.0,95734.0,0.09402876]
[1739308743114,0.208888,95745.0,95734.0,0.08402876]
[1739308743325,0.156667,95745.0,95734.0,0.1475745]
[1739308743549,0.00500974,95744.0,95734.0,0.1475745]
[1739308743863,0.156667,95744.0,95734.0,0.1425745]
[1739308744079,0.00500928,95743.0,95734.0,0.1455745]
[1739308744278,0.00500928,95743.0,95735.0,0.05547702]
[1739308744522,0.209079,95749.0,95735.0,0.05547702]
[1739308744700,0.00500882,95742.0,95735.0,0.05561029]
[1739308744921,0.209079,95749.0,95736.0,0.06662924]
[1739308745247,0.0002,95749.0,95738.0,0.208903]
[1739308745391,0.0002,95749.0,95740.0,0.156672]
[1739308745590,0.00501342,95748.0,95740.0,0.156672]
[1739308745831,0.0002,95749.0,95738.0,0.208903]
[1739308746054,0.00501342,95748.0,95739.0,0.28449457]
[1739308746262,0.00501342,95748.0,95740.0,0.156673]
[1739308746431,0.0002,95749.0,95739.0,0.07559557]
[1739308746646,0.0002,95749.0,95740.0,0.208899]
[1739308746809,0.0002,95749.0,95742.0,0.15667]
[1739308747011,0.0002,95749.0,95741.0,0.10250365]
[1739308747321,0.0050207,95748.0,95741.0,0.10250365]
[1739308747946,0.0002,95749.0,95742.0,0.15667]
[1739308748155,0.00502024,95747.0,95742.0,0.15667]
[1739308748394,0.0050207,95748.0,95742.0,0.15667]
[1739308748600,0.0002,95749.0,95742.0,0.15667]
[1739308748972,0.0050207,95748.0,95742.0,0.156671]
[1739308749192,0.0050207,95748.0,95741.0,0.11050365]
[1739308749391,0.0002,95749.0,95741.0,0.10550365]
[1739308749642,0.0002,95749.0,95741.0,0.11150365]
[1739308749762,0.0002,95749.0,95741.0,0.26817465]
[1739308749967,0.0002,95749.0,95742.0,0.15667]
[1739308750594,0.0002,95749.0,95742.0,0.16067]
[1739308750795,0.0002,95749.0,95741.0,0.005]
[1739308751273,0.0002,95749.0,95742.0,0.003]
[1739308751477,0.0002,95749.0,95742.0,0.15967]
[1739308752039,0.0002,95749.0,95737.0,0.082]
[1739308752365,0.0002,95749.0,95743.0,0.156669]
[1739308752563,0.0002,95749.0,95742.0,0.15667]
[1739308752961,0.0002,95749.0,95742.0,0.208894]
[1739308753157,0.0002,95749.0,95742.0,0.005]
[1739308753372,0.0002,95749.0,95742.0,0.16167]
[1739308753754,0.0002,95749.0,95743.0,0.156669]
[1739308753961,0.0002,95749.0,95742.0,0.005]
[1739308753962,0.0002,95749.0,95748.0,0.156661]
[1739308754157,0.0002,95749.0,95748.0,0.38650896]
[1739308754391,0.0002,95749.0,95748.0,0.53546465]
[1739308754769,0.0003065,95749.0,95748.0,0.53546465]
[1739308755594,0.0003065,95749.0,95748.0,0.53846465]
[1739308755910,0.0003065,95749.0,95748.0,0.53546465]
[1739308756507,0.0003065,95749.0,95748.0,0.55046465]
[1739308756938,0.0003065,95749.0,95748.0,0.53546465]
[1739308757157,0.00021429,95749.0,95748.0,0.55746465]
[1739308757484,0.00021429,95749.0,95748.0,0.55046465]
[1739308757706,0.00021429,95749.0,95748.0,0.6599683]
[1739308758365,0.00021429,95749.0,95748.0,0.6529683]
[1739308758705,0.00021429,95749.0,95748.0,0.6599683]
[1739308759046,0.00021429,95749.0,95748.0,0.6529683]
[1739308759246,0.00021429,95749.0,95748.0,0.6379683]
[1739308759475,0.00021429,95749.0,95748.0,0.6529683]
[1739308760072,0.00021429,95749.0,95748.0,0.6379683]
[1739308760614,0.00021429,95749.0,95748.0,0.6529683]
[1739308760841,0.00021429,95749.0,95748.0,0.6379683]
[1739308761044,0.00021429,95749.0,95748.0,0.6449683]
[1739308761240,0.00021429,95749.0,95748.0,0.6529683]
[1739308762111,0.00021429,95749.0,95748.0,0.6599683]
[1739308762306,0.00021429,95749.0,95748.0,0.6960083]
[1739308762307,2.9e-07,95749.0,95748.0,0.6960083]
[1739308762507,0.0001066,95783.0,95782.0,0.451505]
[1739308762840,0.0001066,95783.0,95782.0,0.55400865]
[1739308763187,0.0001066,95783.0,95782.0,0.53100865]
[1739308763738,0.00055066,95783.0,95782.0,0.53100865]
[1739308764128,0.00055066,95783.0,95782.0,0.53800865]
[1739308764332,0.00055066,95783.0,95782.0,0.6405123]
[1739308764573,0.00055066,95783.0,95782.0,0.4373123]
[1739308764708,0.00055066,95783.0,95782.0,0.4443123]
[1739308764921,0.00055066,95783.0,95782.0,0.5943123]
[1739308765118,0.00055066,95783.0,95782.0,0.5873123]
[1739308765336,0.00055066,95783.0,95771.0,0.02143982]
[1739308765533,0.00055066,95783.0,95774.0,0.0763]
[1739308765824,0.00055066,95783.0,95777.0,0.208817]
[1739308766048,0.00055066,95783.0,95782.0,0.171605]
[1739308766627,0.00055066,95783.0,95782.0,0.22577887]
[1739308766961,0.00055066,95783.0,95782.0,0.23277887]
[1739308767204,0.00055066,95783.0,95782.0,0.156605]
[1739308767592,0.00055066,95783.0,95782.0,0.163605]
[1739308767799,0.00055066,95783.0,95782.0,0.178605]
[1739308770125,0.156582,95796.0,95787.0,0.156596]
[1739308770329,0.14718484,95810.0,95782.0,0.022]
[1739308770330,0.14718484,95810.0,95782.0,0.12450365]
[1739308770513,0.156569,95805.0,95783.0,0.11495402]
[1739308770726,0.156569,95805.0,95794.0,0.156585]
[1739308771029,0.156573,95802.0,95791.0,0.208786]
[1739308771184,0.156573,95802.0,95794.0,0.156585]
[1739308771595,0.208748,95809.0,95794.0,0.156585]
[1739308771792,0.156575,95801.0,95791.0,0.156589]
[1739308772020,0.156584,95796.0,95788.0,0.08402876]
[1739308772350,0.156589,95792.0,95791.0,0.006]
[1739308772939,0.208776,95797.0,95791.0,0.006]
[1739308773091,0.14718484,95798.0,95791.0,0.006]
[1739308773294,0.208751,95808.0,95791.0,0.006]
[1739308773515,0.156586,95794.0,95791.0,0.006]
[1739308773722,0.14718484,95801.0,95791.0,0.006]
[1739308773956,0.20877,95799.0,95788.0,0.08402876]
[1739308774169,0.20877,95799.0,95791.0,0.015]
[1739308774377,0.156584,95795.0,95794.0,0.004]
[1739308774596,0.156587,95794.0,95791.0,0.015]
[1739308774750,0.156588,95793.0,95791.0,0.021]
[1739308775450,0.14718484,95801.0,95791.0,0.013]
[1739308775808,0.156587,95793.0,95791.0,0.014]
[1739308775965,0.156585,95795.0,95791.0,0.021]
[1739308776162,0.35595084,95801.0,95791.0,0.021]
[1739308776395,0.208766,95801.0,95791.0,0.021]